Cogmind - Beta 15 *** ADVENTURER MODE // 2025.09.21 @ 09:31:33 Player: beans Result: Destroyed by S-27 Virus with Autogun Performance ------------- Evolutions (3) 1500 Regions Visited (6) 1200 Robots Destroyed (51) 255 Value Destroyed (1205) 1205 Prototype IDs (0) 0 Alien Tech Used (0) 0 Bonus (0) 0 TOTAL SCORE: 4160 Bonus ------- None Cogmind --------- Core Integrity 0/700 Matter 217/300 Energy 98/100 System Corruption 0% Temperature Cool (0) Movement Core (50) Location -7/Lower Caves Parts ------- > --- POWER (1) -------- (None) > --- PROPULSION (6) --- (None) > --- UTILITY (4) ------ Advanced Heat Sink Armor Integrity Analyzer Hacking Suite Hacking Suite > --- WEAPON (2) ------- (None) > --- INVENTORY (5) ---- Light Nuclear Core Large Storage Unit Improved Medium Laser Pulse Rifle Peak State ------------ > --- POWER ------------ Light Nuclear Core > --- PROPULSION ------- Flight Unit Flight Unit Flight Unit Xenon Bombardment Thruster Xenon Bombardment Thruster > --- UTILITY ---------- Armor Integrity Analyzer Hacking Suite Hacking Suite System Shield > --- WEAPON ----------- Gauss Rifle Gauss Rifle > --- INVENTORY -------- Large Storage Unit Improved Medium Laser Ion Cannon High-powered Shotgun Signal Generator [Rating: 36] Favorites ----------- Power Deuterium Engine Engine Deuterium Engine Power Core Light Nuclear Core Propulsion Light Treads Treads Light Treads Leg Aluminum Leg Flight Unit Flight Unit Utility Hacking Suite Device Advanced Heat Sink Storage Large Storage Unit Processor Armor Integrity Analyzer Hackware Hacking Suite Weapon Medium Laser Energy Gun Medium Laser Ballistic Gun Gauss Rifle Launcher Rocket Launcher Slashing Weapon Chainsword Build | -11 -10 -10 -10 -8 -7 -7 ------- Run | Yrd Mat Min Sub Mat Fac Low Slots Evolved 6 | . . . . 4 2 . Power . | . . . . . . . Propulsion 4 | . . . . 4 . . Utility 2 | . . . . . 2 . Weapon . | . . . . . . . Parts Attached 34 | 3 2 . . 10 13 6 Power 2 | . . . . 1 1 . Engine 1 | . . . . 1 . . Core 1 | . . . . . 1 . Reactor . | . . . . . . . Propulsion 14 | 2 . . . 7 4 1 Treads 2 | 2 . . . . . . Leg 1 | . . . . . . 1 Wheel . | . . . . . . . Hover . | . . . . . . . Flight 11 | . . . . 7 4 . Utility 7 | . 1 . . 1 4 1 Device 1 | . . . . . . 1 Storage 1 | . 1 . . . . . Processor 1 | . . . . . 1 . Hackware 4 | . . . . 1 3 . Protection . | . . . . . . . Artifact . | . . . . . . . Weapon 11 | 1 1 . . 1 4 4 Energy Gun 3 | 1 . . . . 2 . Energy Cannon . | . . . . . . . Ballistic Gun 6 | . 1 . . 1 2 2 Ballistic Cannon . | . . . . . . . Launcher 1 | . . . . . . 1 Special Weapon . | . . . . . . . Impact Weapon . | . . . . . . . Slashing Weapon 1 | . . . . . . 1 Piercing Weapon . | . . . . . . . Special Melee Weapon . | . . . . . . . Unidentified Prototypes . | . . . . . . . Parts Lost 26 | . . . . 6 15 5 Power 2 | . . . . . 2 . Propulsion 14 | . . . . 4 9 1 Utility 1 | . . . . . 1 . Weapon 9 | . . . . 2 3 4 Highest Loss Streak 5 | . . . . 5 5 5 To Critical Strikes . | . . . . . . . Average Backups 1 | . . . . 1 3 4 Power . | . . . . . . 1 Propulsion . | . . . . . . . Utility . | . . . . . 1 1 Weapon 1 | . . . . . 2 2 Tool/Special . | . . . . . . . Unused Backups 4 | . . . . . 1 3 Power 1 | . . . . . . 1 Propulsion . | . . . . . . . Utility . | . . . . . . . Weapon 3 | . . . . . 1 2 Tool/Special . | . . . . . . . Average Slot Usage (%) 60 | . 59 71 71 48 63 43 Engine 1 | . . . . 3 1 . Treads 13 | . 28 28 28 7 . . Flight 9 | . . . . 12 23 . Storage 6 | . 11 14 14 4 . . Processor 2 | . . . . . 6 7 Hackware 8 | . . . . 7 16 15 Energy Gun 7 | . 14 14 14 4 1 1 Ballistic Gun 10 | . 4 14 14 8 10 10 Peak Build Rating 36 | 3 5 5 5 14 36 25 Average Rating 13 | 2 4 5 5 8 24 21 On Entrance 6 | . 3 5 5 5 14 14 Naked Turns . | . . . . . . . Heaviest Build 23 | 2 23 23 23 23 17 9 Greatest Support 40 | 40 40 40 40 40 24 10 Greatest Overweight (x) 2 | . . . . 1 1 2 Average Overweight (x) . | . . . . . . . Largest Inventory Capacity 15 | 5 15 15 15 15 5 5 Average Capacity 9 | 5 13 15 15 9 5 5 Most Carried 5 | 2 2 1 1 5 5 5 Average Carried 2 | . . . 1 2 4 4 Final Capacity 15 | 5 15 15 15 5 5 5 Final Carried 5 | . . 1 1 3 5 4 Class Distribution -------------------- 45% | Mutant 38% | Hacker-Mutant 9% | Scavenger-Sprinter 6% | Hacker-Sprinter Dominant Class ---------------- Mutant | -10/Materials Mutant | -10/Mines Mutant | -10/Subcaves Hacker-Mutant | -8/Materials Hacker-Mutant | -7/Factory Hacker-Mutant | -7/Lower Caves Resources | -11 -10 -10 -10 -8 -7 -7 ----------- Run | Yrd Mat Min Sub Mat Fac Low Matter Collected 1037 | 164 74 44 . 145 474 136 Remotely . | . . . . . . . Salvage Created 1564 | . 89 56 . 344 785 290 Parts 98 | . 9 6 . 19 49 15 Haulers Intercepted 3 | . . . . 3 . . Recyclers Shooed . | . . . . . . . Parts Field Recycled . | . . . . . . . Retrieved Matter . | . . . . . . . Parts Self-Destructed 12 | . . . . . . 12 Prevented . | . . . . . . . Kills | -11 -10 -10 -10 -8 -7 -7 ------- Run | Yrd Mat Min Sub Mat Fac Low Combat Hostiles Destroyed 33 | . 3 3 . 9 11 7 Guns 31 | . 3 3 . 8 11 6 AOE 1 | . . . . . . 1 Classes Destroyed 11 | . 2 . . 5 3 1 Worker 6 | . . . . 1 5 . Builder 2 | . . . . . 2 . Hauler 3 | . . . . 3 . . Recycler 2 | . . . . . 2 . Operator 2 | . . . . . 2 . Watcher 3 | . 2 . . . 1 . Swarmer 16 | . 3 3 . 6 4 . Grunt 12 | . . . . 1 6 5 Duelist 1 | . . . . . . 1 Sentry 3 | . . . . 1 1 1 Hunter 1 | . . . . 1 . . Best Kill Streak 8 | . 4 3 . 5 8 4 Combat Bots Only 4 | . 3 3 . 4 3 4 Max Kills in Single Turn 3 | . 1 1 . 1 3 1 Gunslinging . | . . . . . . . Exploded 1 | . . . . . . 1 Melee . | . . . . . . . Uniques/NPCs Destroyed . | . . . . . . . Combat | -11 -10 -10 -10 -8 -7 -7 -------- Run | Yrd Mat Min Sub Mat Fac Low Hostile Shots Fired 417 | . 5 11 1 127 163 110 Missed 163 | . . 2 1 43 70 47 Hits 254 | . 5 9 . 84 93 63 Melee 4 | . . . . . . 4 Projectile 250 | . 5 9 . 84 93 59 Critical Strikes 5 | . . . . 3 1 1 Damage Taken 2731 | . 29 52 . 812 1033 805 Core 947 | . 12 16 . 216 328 375 Absorbed by Shields . | . . . . . . . Ignored by Resistances 801 | . 10 18 . 235 305 233 Core Remaining (%) 82 | 100 . . 88 60 . . Volleys Fired 129 | . 13 4 1 42 53 16 Largest 2 | . 2 2 2 2 2 2 Hottest 126 | . 70 70 70 70 126 91 Shots Fired 221 | . 21 8 2 59 101 30 Gun 219 | . 21 8 2 59 101 28 Cannon . | . . . . . . . Launcher 2 | . . . . . . 2 Special . | . . . . . . . Kinetic 176 | . 8 4 1 42 95 26 Thermal 43 | . 13 4 1 17 6 2 Explosive 2 | . . . . . . 2 Electromagnetic . | . . . . . . . Robot Hit Streak 33 | . 7 5 7 33 29 27 Robot Miss Streak 5 | . 1 1 . 4 5 4 Penetration Max 1 | . . . . . 1 . Secondary Targets 7 | . 1 1 . 1 2 2 Max Gunslinging Chain 1 | . 1 1 . 1 1 1 Shots Hit Robots 183 | . 15 6 2 52 80 28 Core Hits 123 | . 5 4 1 24 38 51 Critical Kills 2 | . . . . . 2 . Critical Parts Destroyed 1 | . . . . . 1 . Critical Strikes 7 | . 1 . . 3 3 . Burn 4 | . 1 . . 3 . . Destroy 3 | . . . . . 3 . Melee Attacks 1 | . . . . . . 1 Impact . | . . . . . . . Slashing 1 | . . . . . . 1 Piercing . | . . . . . . . Sneak Attacks . | . . . . . . . Combat Hostiles . | . . . . . . . Follow-up Attacks . | . . . . . . . Damage Inflicted 3798 | . 126 66 21 805 1848 932 Guns 3483 | . 126 66 21 802 1848 620 Cannons . | . . . . . . . Explosions 289 | . . . . . . 289 Melee 23 | . . . . . . 23 Ramming 3 | . . . . 3 . . Kinetic 2982 | . 15 16 9 590 1766 586 Thermal 501 | . 111 50 12 212 82 34 Explosive 289 | . . . . . . 289 Electromagnetic . | . . . . . . . Impact . | . . . . . . . Slashing 23 | . . . . . . 23 Piercing . | . . . . . . . Highest Corruption . | . . . . . . . Average Corruption . | . . . . . . . Corruption Purged . | . . . . . . . Corruption Blocked . | . . . . . . . Overload Shots . | . . . . . . . Overflow Damage 7 | . . . . . . 7 Projectiles . | . . . . . . . Explosions . | . . . . . . . Melee 7 | . . . . . . 7 Knockbacks . | . . . . . . . Impact . | . . . . . . . Kinetic . | . . . . . . . Secondary . | . . . . . . . Self-Inflicted Damage 16 | . . . . . . 16 Shots 1 | . . . . . . 1 Rammed 1 | . . . . 1 . . Targets Rammed 1 | . . . . 1 . . Kicked . | . . . . . . . Crushed . | . . . . . . . Highest Temperature 90 | . 40 20 . 35 90 11 Average Temperature 30 | . 17 15 . 9 43 5 Received Heat Transfer 1002 | . . . . 306 522 174 Siege Activations . | . . . . . . . Martial Activations . | . . . . . . . Shielding Activations . | . . . . . . . Robots Disrupted . | . . . . . . . Combat Hostiles . | . . . . . . . Robots Corrupted . | . . . . . . . Combat Hostiles . | . . . . . . . Parts Fried . | . . . . . . . Impact Corruptions . | . . . . . . . Robots Melted 1 | . . . . 1 . . Combat Hostiles 1 | . . . . 1 . . Parts Melted 5 | . 2 . . 3 . . Heat Transferred 1702 | . 407 148 37 851 185 74 Parts Sabotaged . | . . . . . . . Parts Stolen . | . . . . . . . Parts Stripped . | . . . . . . . Power Chain Reactions . | . . . . . . . Alert | -11 -10 -10 -10 -8 -7 -7 ------- Run | Yrd Mat Min Sub Mat Fac Low Maximum Alert Level 1 | . . . . . 1 . Low Security (%) 95 | 100 100 100 . 100 86 . Level 1 4 | . . . . . 13 . Level 2 . | . . . . . . . Level 3 . | . . . . . . . Level 4 . | . . . . . . . Level 5 . | . . . . . . . High Security . | . . . . . . . Max Security . | . . . . . . . Peak Influence 257 | . 77 85 . 191 257 . Initial 72 | . . 15 . . 72 . Average 58 | . 12 20 . 55 118 . Influence Increases 1179 | . 84 70 . 325 550 150 Destroy 0b10 Robot/C 660 | . 60 60 . 180 220 140 Destroy 0b10 Robot/NC 90 | . 10 . . 20 60 . Destroy Leader 112 | . 14 10 . 56 22 10 Successful Hack 52 | . . . . . 52 . Disable Machine 9 | . . . . 9 . . Destroy Structure 1 | . . . . . 1 . Partial Spotted 30 | . . . . . 30 . Lose Combat Pursuer 225 | . . . . 60 165 . Influence Decreases 1053 | . 37 117 . 140 523 236 Entered New Map 241 | . . 32 . . 113 96 Time Decay 552 | . 37 85 . 80 260 90 Lost Part 260 | . . . . 60 150 50 Squads Dispatched 6 | . . . . . 6 . Investigation 2 | . . . . . 2 . Extermination 1 | . . . . . 1 . Reinforcement 2 | . . . . . 2 . Assault 1 | . . . . . 1 . Garrison . | . . . . . . . Intercept . | . . . . . . . Searches Triggered . | . . . . . . . Construction Impeded . | . . . . . . . Haulers Reinforced . | . . . . . . . Active Scanning Responses . | . . . . . . . Cargo Convoy Interrupts . | . . . . . . . Stealth | -11 -10 -10 -10 -8 -7 -7 --------- Run | Yrd Mat Min Sub Mat Fac Low Distress Signals 1 | . . . . . 1 . Communications Jammed . | . . . . . . . Distress Signals . | . . . . . . . Times Spotted 76 | . 6 3 1 22 31 13 Peak Tracking Total 7 | . 3 2 1 7 7 7 Tactical Retreats 6 | . . . . 2 4 . Traps | -11 -10 -10 -10 -8 -7 -7 ------- Run | Yrd Mat Min Sub Mat Fac Low Traps Triggered 2 | . 1 . . . 1 . Indirectly . | . . . . . . . Trap Hack Attempts . | . . . . . . . Triggered . | . . . . . . . Disarmed . | . . . . . . . Reprogrammed 8 | . . . . . 8 . Reused . | . . . . . . . Traps Extracted . | . . . . . . . Installed . | . . . . . . . Triggered . | . . . . . . . Machines | -11 -10 -10 -10 -8 -7 -7 ---------- Run | Yrd Mat Min Sub Mat Fac Low Machines Disabled 1 | . . . . 1 . . Max in Single Turn 1 | . . . . 1 . . Machines Repaired . | . . . . . . . Machines Dismantled . | . . . . . . . Machines Sabotaged . | . . . . . . . Overloaded Fab Kills . | . . . . . . . Hacking | -11 -10 -10 -10 -8 -7 -7 --------- Run | Yrd Mat Min Sub Mat Fac Low Machines Accessed 10 | . . . . . 10 . Terminals 8 | . . . . . 8 . Fabricators 2 | . . . . . 2 . Repair Stations . | . . . . . . . Recycling Units . | . . . . . . . Scanalyzers . | . . . . . . . Garrison Access . | . . . . . . . Total Hacks 26 | . . . . . 26 . Successful 11 | . . . . . 11 . Failed 15 | . . . . . 15 . Catastrophic 2 | . . . . . 2 . Database Lockouts . | . . . . . . . Manual 2 | . . . . . 2 . Terminals 21 | . . . . . 21 . Fabricators 5 | . . . . . 5 . Repair Stations . | . . . . . . . Recycling Units . | . . . . . . . Scanalyzers . | . . . . . . . Garrison Access . | . . . . . . . Terminal Hacks 10 | . . . . . 10 . Part Schematic 3 | . . . . . 3 . Robot Schematic 2 | . . . . . 2 . Robot Analysis 2 | . . . . . 2 . Open DSF 1 | . . . . . 1 . Reprogram Traps 2 | . . . . . 2 . Fabricator Hacks 1 | . . . . . 1 . Build 1 | . . . . . 1 . Repair Station Hacks . | . . . . . . . Recycling Unit Hacks . | . . . . . . . Scanalyzer . | . . . . . . . Garrison Access Hacks . | . . . . . . . Unauthorized Hacks . | . . . . . . . Terminals . | . . . . . . . Fabricators . | . . . . . . . Repair Stations . | . . . . . . . Recycling Units . | . . . . . . . Scanalyzers . | . . . . . . . Garrison Access . | . . . . . . . Data Cores Recovered 1 | . . . . . 1 . Used . | . . . . . . . Hacking Detections 7 | . . . . . 7 . Full Trace Events 1 | . . . . . 1 . Feedback Events . | . . . . . . . Feedback Blocked 1 | . . . . . 1 . Robot Schematics Acquired 2 | . . . . . 2 . Robots Built . | . . . . . . . Authchips . | . . . . . . . Time . | . . . . . . . Total Robot Build Rating . | . . . . . . . Part Schematics Acquired 3 | . . . . . 3 . Parts Built 2 | . . . . . 2 . Authchips . | . . . . . . . Time 42 | . . . . . 42 . Total Part Build Rating 8 | . . . . . 8 . Parts Repaired . | . . . . . . . Time . | . . . . . . . Parts Recycled . | . . . . . . . Recycled Matter . | . . . . . . . Retrieved Matter . | . . . . . . . Retrieved Components . | . . . . . . . Parts Scanalyzed . | . . . . . . . Part Schematics Acquired . | . . . . . . . Parts Damaged . | . . . . . . . Bothacking | -11 -10 -10 -10 -8 -7 -7 ------------ Run | Yrd Mat Min Sub Mat Fac Low Used RIF Installer . | . . . . . . . Robots Hacked . | . . . . . . . Non-combat . | . . . . . . . Combat . | . . . . . . . Robot Hacks Applied . | . . . . . . . Relay Couplers Released . | . . . . . . . Fabnet Peak Effective % . | . . . . . . . Robots Rewired . | . . . . . . . Allies Hacked . | . . . . . . . Hacks Repelled . | . . . . . . . Allies | -11 -10 -10 -10 -8 -7 -7 -------- Run | Yrd Mat Min Sub Mat Fac Low Total Allies . | . . . . . . . Largest Group . | . . . . . . . Highest-Rated Group . | . . . . . . . Highest-Rated Ally . | . . . . . . . Total Orders . | . . . . . . . Ally Attacks . | . . . . . . . Total Damage . | . . . . . . . Kills . | . . . . . . . Allies Corrupted . | . . . . . . . Allies Melted . | . . . . . . . Intel | -11 -10 -10 -10 -8 -7 -7 ------- Run | Yrd Mat Min Sub Mat Fac Low Active Infowar (turns) . | . . . . . . . Robot Analysis Total 2 | . . . . . 2 . Derelict Logs Recovered 1 | . . 1 . . . . Drone Launches . | . . . . . . . Drone Recoveries . | . . . . . . . Exploration | -11 -10 -10 -10 -8 -7 -7 ------------- Run | Yrd Mat Min Sub Mat Fac Low Turns Passed 1721 | 41 303 377 45 245 528 182 Spaces Moved 1753 | 28 165 227 27 215 982 109 Core 146 | 8 . . . 13 77 48 Treads 471 | 20 165 227 27 32 . . Legs 61 | . . . . . . 61 Wheels . | . . . . . . . Hover . | . . . . . . . Flight 1075 | . . . . 170 905 . Fastest Speed 24 | 50 160 160 160 28 24 50 Average Speed 73 | 128 160 160 160 57 34 111 Slowest Speed 240 | 160 160 160 160 240 120 150 Overloaded Moves . | . . . . . . . Propulsion Burnouts . | . . . . . . . Robots Hopped 6 | . . . . 4 2 . Potential Cave-ins . | . . . . . . . Cave-ins Triggered . | . . . . . . . Exploration Rate (%) 25 | 3 40 55 5 26 33 14 Regions Visited 6 Branch Regions 3 Pre-discovered Areas . | . . . . . . . Known Exits Taken . | . . . . . . . Unknown Exits Taken 6 | 1 1 1 1 1 1 . Scrap Searched 2 | . . . . . . 2 Spaces Dug . | . . . . . . . Terrain Destroyed 16 | . . . . . 1 15 Melee . | . . . . . . . Projectile 1 | . . . . . 1 . AOE 15 | . . . . . . 15 Terrain Rammed . | . . . . . . . Walls Destroyed . | . . . . . . . Machines Disabled . | . . . . . . . Actions | -11 -10 -10 -10 -8 -7 -7 --------- Run | Yrd Mat Min Sub Mat Fac Low Total 1952 | 33 185 234 27 275 1060 138 Wait 12 | . . 3 . 2 6 1 Move 1735 | 27 164 226 26 206 977 109 Hop 6 | . . . . 4 2 . Pick Up 24 | 3 4 1 . 9 5 2 Fast Attach 16 | . . . . 2 11 3 Attach 18 | 3 4 . . 8 1 2 Detach 1 | . . . . 1 . . Swap 4 | . . . . . 2 2 Drop 5 | . . . . . 3 2 Fire 129 | . 13 4 1 42 53 16 Melee 1 | . . . . . . 1 Ram . | . . . . . . . Kick . | . . . . . . . Crush 1 | . . . . 1 . . Escape Stasis . | . . . . . . . Rewire . | . . . . . . . Trap . | . . . . . . . Miscellaneous . | . . . . . . . Route ------- -11/Scrapyard -10/Materials -10/Mines -10/Subcaves -8/Materials -7/Factory -7/Lower Caves History --------- Turn | Location | Event 6 | -11/Scrapyard | Discovered new exit (range 15) 42 | -11/Scrapyard | Entered Materials 315 | -10/Materials | Build established: Mutant 332 | -10/Materials | Discovered new exit (range 7) 345 | -10/Materials | Entered Mines 454 | -10/Mines | Met a Derelict testing a Signal Generator 462 | -10/Mines | Found Signal Generator 694 | -10/Mines | Discovered new exit (range 9) 722 | -10/Mines | Entered Subcaves 723 | -10/Subcaves | Approached by a straggling Scientist 727 | -10/Subcaves | Discovered new exit (range 12) 767 | -10/Subcaves | Entered Materials 767 | -8/Materials | Evolved 4 slots: Propulsion x4 938 | -8/Materials | Lost 5 parts (3n2w) 1006 | -8/Materials | Discovered new exit (range 15) 1012 | -8/Materials | Entered Factory 1012 | -7/Factory | Evolved 2 slots: Utility x2 1188 | -7/Factory | Lost 4 parts (1p3n) 1302 | -7/Factory | Fabricated Imp. Shield Generator? 1327 | -7/Factory | Lost 4 parts (1p3n) 1408 | -7/Factory | Discovered new exit (range 15) 1539 | -7/Factory | Lost 5 parts (2n1u2w) 1540 | -7/Factory | Entered Lower Caves 1542 | -7/Lower Caves | Attracted the attention of an 0b10 checkpoint 1542 | -7/Lower Caves | Core integrity fell below 50% 1582 | -7/Lower Caves | Build established: Hacker-Mutant 1653 | -7/Lower Caves | Attracted the attention of an 0b10 outpost 1703 | -7/Lower Caves | Core integrity fell below 20% 1722 | -7/Lower Caves | Destroyed by S-27 Virus with Autogun Last Messages --------------- Slug penetrates L-41 Fighter. Flak Gun destroyed. Aluminum Leg destroyed. Searching scrap... Found Lgt. Nuclear Core. Found Datajack. Found Chainsword. Found Adv. Targeting Computer. Found 40 Matter. L-41 Fighter destroyed. Rocket Launcher destroyed. Acquired Chainsword. Axe fries itself beyond repair. Carbon-fiber Leg fries itself beyond repair. Destroyed Imp. Deuterium Engine. Chainsword destroyed. Imp. Melee Analysis Suite fries itself beyond repair. The unstable cave ceiling collapses. S-27 Virus destroyed. Map ----- +----------------------------------------------------+ | ?????????????????????????????????????????????????? | | ?????????????????????????????????????????????????? | | ?????????????????????????????????????????????????? | | ?????????????????????????????????????????????????? | | ?????????????????????????????????????????????????? | | ?????????????????????????????????????????????????? | | ?????????????????????????????????????????????????? | | ?????????????????????????????????????????????????? | | ?????????????????????????????????????????????????? | | ?????????????????????????????????????????????????? | | ?????????????????????????????????????????????????? | | ?????????????????????????????????????????????????? | | ?????????????????????????????????????????????????? | | ?????????????????????????????????????????????????? | | ?????????????????????????????????????????????????? | | ?????????????????????????????????????????????????? | | ?????????????????????????????????????????????????? | | ?????????????????????????????????????????????????? | | ?????????????????????????????????????????????????? | | ?????????????????????????????????????????????????? | | ?????????????????######????#####?????????????????? | | ??????????????#### ##??## #####????????????## | | ??????????##### #?## ##########???# | | ???????? ### ## ## #### | | ???????????????# | | ???????????????#### @ | | ??????????????????# #### #??? | | ???????????# ???### ##?# ##??# | | ??????????## ### #??# ## ss ##?# | | ??????????# ##### ##### ### | | ??????????## ## ###???# | | ???????????### #?##?# ###% | | ?????????????## ## ## ## ##?## | | ??????????????###### %# ### #???# | | ???????????????????# == ### ##?## | | ??????????????????# % ### ## #?# | | ?????????????????# " %%* # ### | | ?????????????? #" # ## | | ???????????? #" # ##? | | ????????????######## #" ## ### ####?? | | ???????????????????# #" ? # ##?#####????? | | ???????????????????# #""""""# #???????????? | | ??????????????????# # ######## #???????????? | | ??????????????????# ## ?????? ????????????? | | ?????????????????? ##?## ?????##????????????? | | ????????????????? ###????# ??????????????????? | | ???????????????? #???????????????????????????? | | ?????????????????? ##????????????????????????????? | | ?????????????????????????????????????????????????? | | ?????????????????????????????????????????????????? | +----------------------------------------------------+ Best States ------------- Heat Dissipation 53 Energy Generation 14 Energy Capacity 275 Matter Stores 300 Matter Capacity 300 Sight Range 16 Terrain Scan Density 10 Resistance: KI 20 Resistance: TH 20 Resistance: EX 20 Resistance: EM 20 Resistance: I 20 Resistance: S 20 Resistance: P 20 Evasion (%) 64 Armor Integrity Analysis 30 Recoil Reduction 2 Offensive Hacking 30 Defensive Hacking 10 Item Schematics ----------------- Variable Charge Gun | -7/Factory | Hacked Linear Gravjet | -7/Factory | Hacked Fission Core | -7/Factory | Hacked Robot Schematics ------------------ A-02 Transporter | -7/Factory | Hacked L-41 Fighter | -7/Factory | Hacked Fabricated ------------ Imp. Shield Generator | x2 | -7/Factory | Preloaded Repaired ---------- Nothing Alien Tech Used ----------------- None Achievements -------------- None Challenges ------------ None Game ------ Seed SniperActuatorPrototype Manual? 0 Play Time 00:19:50 Cumulative 153.1 hours Start 2025.09.21 @ 09:13:57 End 2025.09.21 @ 09:31:33 Sessions 1 Manual Loads 0 Difficulty Adventurer Special Mode None Game No. 499 Rogue 498 Adventurer 1 Explorer 0 Win Type - Total 0 Types 0/0/0/0/0/0/0/0/0/0 Lore% 55 Gallery% 52 Achievement% 42 Wizard Run 0 Options --------- Layout 1 ASCII 0 Keyboard 0 Movement Mouse Keybinds 0 Fullscreen 2 Font 24/Smallcaps Map View 50x35 Zoom Use 0% Tactical HUD 0 Map Filters NONE Filters NONE Steam 1 RUN: aff9d991-eaaf-4e15-8411-1627fc6b0c11